Cogmind - Beta 11 @@@ ROGUE MODE // 2022.03.30 @ 16:49:46 Player: Wyvric Result: Destroyed by D-53 Grenadier with Mini Grenade Launcher Performance ------------- Evolutions (0) 0 Regions Visited (2) 400 Robots Destroyed (10) 50 Value Destroyed (180) 180 Prototype IDs (0) 0 Alien Tech Used (0) 0 Bonus (0) 0 TOTAL SCORE: 630 Bonus ------- None Cogmind --------- Core Integrity 0/250 Matter 294/300 Energy 125/125 System Corruption 0% Temperature Cool (0) Movement Treading (160) Location -10/Mines Parts ------- > --- POWER (1) -------- Light Ion Engine > --- PROPULSION (2) --- Light Treads Light Treads > --- UTILITY (2) ------ Medium Storage Unit Terrain Scanner > --- WEAPON (2) ------- Heavy Assault Rifle Heavy Assault Rifle > --- INVENTORY (10) --- Aluminum Leg Aluminum Leg Wheel Huge Storage Unit High-capacity Matter Pod (200) Sensor Array Beam Cannon Heavy Assault Rifle Mini Grenade Launcher Mini Grenade Launcher Peak State ------------ > --- POWER ------------ Light Ion Engine > --- PROPULSION ------- Aluminum Leg Aluminum Leg > --- UTILITY ---------- Small Storage Unit Huge Storage Unit > --- WEAPON ----------- Heavy Assault Rifle Heavy Assault Rifle > --- INVENTORY -------- Light Treads Light Treads Wheel Wheel Heavy Assault Rifle Heavy Assault Rifle Mini Grenade Launcher Mini Grenade Launcher [Rating: 10] Favorites ----------- Power Light Ion Engine Engine Light Ion Engine Propulsion Light Treads Treads Light Treads Leg Aluminum Leg Wheel Wheel Utility Terrain Scanner Device Terrain Scanner Storage Small Storage Unit Weapon Heavy Assault Rifle Energy Gun Small Laser Ballistic Gun Heavy Assault Rifle Launcher Mini Grenade Launcher Build | -11 -10 -10 ------- Run | Scr Mat Min Slots Evolved . | . . . Power . | . . . Propulsion . | . . . Utility . | . . . Weapon . | . . . Parts Attached 21 | 6 11 4 Power 1 | 1 . . Engine 1 | 1 . . Core . | . . . Reactor . | . . . Propulsion 6 | 2 2 2 Treads 2 | . . 2 Leg 2 | 2 . . Wheel 2 | . 2 . Hover . | . . . Flight . | . . . Utility 6 | 1 4 1 Device 1 | . 1 . Storage 5 | 1 3 1 Processor . | . . . Hackware . | . . . Protection . | . . . Artifact . | . . . Weapon 8 | 2 5 1 Energy Gun 1 | 1 . . Energy Cannon . | . . . Ballistic Gun 5 | 1 3 1 Ballistic Cannon . | . . . Launcher 2 | . 2 . Special Weapon . | . . . Impact Weapon . | . . . Slashing Weapon . | . . . Piercing Weapon . | . . . Special Melee Weapon . | . . . Unidentified Prototypes . | . . . Parts Lost 2 | . 1 1 Power . | . . . Propulsion 1 | . . 1 Utility . | . . . Weapon 1 | . 1 . Highest Loss Streak 1 | . 1 1 To Critical Strikes . | . . . Average Slot Usage (%) 91 | . 85 99 Engine 14 | . 14 14 Treads 12 | . . 27 Leg 9 | . 17 . Wheel 6 | . 10 . Device 7 | . 1 14 Storage 15 | . 15 14 Energy Gun 2 | . 4 . Ballistic Gun 23 | . 19 27 Naked Turns . | . . . Heaviest Build 94 | 11 94 88 Greatest Support 40 | 20 20 40 Greatest Overweight (x) 4 | 1 4 4 Average Overweight (x) . | . 1 . Largest Inventory Capacity 25 | 8 25 25 Average Capacity 12 | 6 14 10 Most Carried 11 | 6 11 10 Average Carried 8 | 3 8 9 Final Capacity 25 | 8 25 10 Final Carried 10 | 6 10 10 Class Distribution -------------------- 100% | Mutant Dominant Class ---------------- Mutant | -10/Materials Mutant | -10/Mines Resources | -11 -10 -10 ----------- Run | Scr Mat Min Matter Collected 510 | 234 125 151 Remotely . | . . . Salvage Created 113 | . 86 27 Parts 14 | . 13 1 Haulers Intercepted . | . . . Recyclers Shooed . | . . . Parts Field Recycled . | . . . Retrieved Matter . | . . . Parts Self-Destructed . | . . . Prevented . | . . . Kills | -11 -10 -10 ------- Run | Scr Mat Min Combat Hostiles Destroyed 9 | . 7 2 Guns 1 | . 1 . AOE 8 | . 6 2 Classes Destroyed 3 | . 3 . Builder 1 | . 1 . Swarmer 6 | . 6 . Grunt 3 | . 1 2 Best Kill Streak 4 | . 4 2 Combat Bots Only 3 | . 3 2 Max Kills in Single Turn 3 | . 3 1 Gunslinging . | . . . Exploded 3 | . 3 1 Melee . | . . . Uniques/NPCs Destroyed . | . . . Combat | -11 -10 -10 -------- Run | Scr Mat Min Damage Taken 655 | . 368 287 Core 251 | . 158 93 Absorbed by Shields . | . . . Core Remaining (%) 100 | 100 . . Volleys Fired 18 | . 13 5 Largest 2 | . 2 2 Hottest 60 | . 60 46 Shots Fired 28 | . 22 6 Gun 20 | . 18 2 Cannon . | . . . Launcher 8 | . 4 4 Special . | . . . Kinetic 12 | . 10 2 Thermal 8 | . 8 . Explosive 8 | . 4 4 Electromagnetic . | . . . Robot Hit Streak 4 | . 2 4 Robot Miss Streak 6 | . 6 1 Penetration Max . | . . . Secondary Targets . | . . . Shots Hit Robots 12 | . 8 4 Core Hits 12 | . 8 4 Critical Kills . | . . . Critical Parts Destroyed . | . . . Critical Strikes . | . . . Melee Attacks . | . . . Impact . | . . . Slashing . | . . . Piercing . | . . . Sneak Attacks . | . . . Combat Hostiles . | . . . Follow-up Attacks . | . . . Damage Inflicted 743 | . 469 274 Guns 101 | . 87 14 Cannons . | . . . Explosions 642 | . 382 260 Melee . | . . . Ramming . | . . . Kinetic 67 | . 53 14 Thermal 34 | . 34 . Explosive 642 | . 382 260 Electromagnetic . | . . . Impact . | . . . Slashing . | . . . Piercing . | . . . Highest Corruption . | . . . Average Corruption . | . . . Corruption Purged . | . . . Corruption Blocked . | . . . Overload Shots . | . . . Overflow Damage 19 | . 19 . Projectiles . | . . . Explosions 19 | . 19 . Melee . | . . . Knockbacks . | . . . Impact . | . . . Kinetic . | . . . Secondary . | . . . Self-Inflicted Damage 96 | . 30 66 Shots 5 | . 1 4 Rammed . | . . . Targets Rammed . | . . . Kicked . | . . . Crushed . | . . . Highest Temperature 24 | . 24 10 Average Temperature 12 | . 16 4 Received Heat Transfer 66 | . 24 42 Siege Activations . | . . . Robots Corrupted . | . . . Combat Hostiles . | . . . Parts Fried . | . . . Impact Corruptions . | . . . Robots Melted . | . . . Combat Hostiles . | . . . Parts Melted . | . . . Heat Transferred 75 | . 75 . Parts Sabotaged . | . . . Parts Stolen . | . . . Parts Stripped . | . . . Power Chain Reactions . | . . . Missiles Intercepted . | . . . Alert | -11 -10 -10 ------- Run | Scr Mat Min Peak Influence 368 | . 368 255 Initial 143 | . . 143 Average 185 | . 160 253 Maximum Alert Level 1 | . 1 1 Low Security (%) 29 | 100 40 1 Level 1 70 | . 59 98 Level 2 . | . . . Level 3 . | . . . Level 4 . | . . . Level 5 . | . . . High Security . | . . . Max Security . | . . . Squads Dispatched 3 | . 3 . Investigation 2 | . 2 . Extermination . | . . . Reinforcement 1 | . 1 . Assault . | . . . Garrison . | . . . Intercept . | . . . Searches Triggered . | . . . Construction Impeded . | . . . Haulers Reinforced . | . . . Active Scanning Responses . | . . . Cargo Convoy Interrupts . | . . . Stealth | -11 -10 -10 --------- Run | Scr Mat Min Distress Signals 1 | . 1 . Communications Jammed . | . . . Distress Signals . | . . . Times Spotted 15 | . 11 4 Peak Tracking Total 4 | . 4 2 Tactical Retreats . | . . . Traps | -11 -10 -10 ------- Run | Scr Mat Min Traps Triggered 2 | . 2 . Indirectly . | . . . Trap Hack Attempts . | . . . Triggered . | . . . Disarmed . | . . . Reprogrammed . | . . . Reused . | . . . Traps Extracted . | . . . Installed . | . . . Triggered . | . . . Machines | -11 -10 -10 ---------- Run | Scr Mat Min Machines Disabled . | . . . Max in Single Turn . | . . . Machines Sabotaged . | . . . Garrisons Compromised . | . . . Overloaded Fab Kills . | . . . Hacking | -11 -10 -10 --------- Run | Scr Mat Min Machines Accessed 6 | . 6 . Terminals 5 | . 5 . Fabricators . | . . . Repair Stations . | . . . Recycling Units 1 | . 1 . Scanalyzers . | . . . Garrison Access . | . . . Total Hacks 22 | . 22 . Successful 10 | . 10 . Failed 12 | . 12 . Catastrophic 2 | . 2 . Database Lockouts . | . . . Manual 16 | . 16 . Terminals 19 | . 19 . Fabricators . | . . . Repair Stations . | . . . Recycling Units 3 | . 3 . Scanalyzers . | . . . Garrison Access . | . . . Terminal Hacks 5 | . 5 . Part Schematic 2 | . 2 . Branch Access Points 1 | . 1 . Registered Components 1 | . 1 . Zone Layout 1 | . 1 . Fabricator Hacks . | . . . Repair Station Hacks . | . . . Recycling Unit Hacks 2 | . 2 . Report Inventory 1 | . 1 . Retrieve Components 1 | . 1 . Scanalyzer . | . . . Garrison Access Hacks . | . . . Unauthorized Hacks 3 | . 3 . Terminals 2 | . 2 . Track 1 | . 1 . Botnet 1 | . 1 . Fabricators . | . . . Repair Stations . | . . . Recycling Units 1 | . 1 . Tunnel 1 | . 1 . Scanalyzers . | . . . Garrison Access . | . . . Data Cores Recovered . | . . . Used . | . . . Hacking Detections 6 | . 6 . Full Trace Events . | . . . Feedback Events . | . . . Feedback Blocked . | . . . Robot Schematics Acquired . | . . . Robots Built . | . . . Authchips . | . . . Time . | . . . Total Robot Build Rating . | . . . Part Schematics Acquired 2 | . 2 . Parts Built . | . . . Authchips . | . . . Time . | . . . Total Part Build Rating . | . . . Parts Repaired . | . . . Time . | . . . Parts Recycled . | . . . Recycled Matter . | . . . Retrieved Matter . | . . . Retrieved Components 2 | . 2 . Parts Scanalyzed . | . . . Part Schematics Acquired . | . . . Parts Damaged . | . . . Bothacking | -11 -10 -10 ------------ Run | Scr Mat Min Used RIF Installer . | . . . Robots Hacked . | . . . Non-combat . | . . . Combat . | . . . Robot Hacks Applied . | . . . Relay Couplers Released . | . . . Fabnet Peak Effective % . | . . . Robots Rewired . | . . . Allies Hacked . | . . . Hacks Repelled . | . . . Allies | -11 -10 -10 -------- Run | Scr Mat Min Total Allies . | . . . Largest Group . | . . . Highest-Rated Group . | . . . Highest-Rated Ally . | . . . Total Orders . | . . . Ally Attacks . | . . . Total Damage . | . . . Kills . | . . . Allies Corrupted . | . . . Allies Melted . | . . . Intel | -11 -10 -10 ------- Run | Scr Mat Min Robot Analysis Total . | . . . Derelict Logs Recovered . | . . . Drone Launches . | . . . Drone Recoveries . | . . . Exploration | -11 -10 -10 ------------- Run | Scr Mat Min Turns Passed 756 | 61 385 310 Spaces Moved 472 | 43 247 182 Core 8 | 8 . . Treads 181 | . . 181 Legs 185 | 35 150 . Wheels 98 | . 97 1 Hover . | . . . Flight . | . . . Fastest Speed 50 | 50 120 140 Average Speed 138 | 109 127 159 Slowest Speed 160 | 120 140 160 Overloaded Moves . | . . . Propulsion Burnouts . | . . . Robots Hopped . | . . . Cave-ins Triggered . | . . . Exploration Rate (%) 29 | 4 58 26 Regions Visited 2 Branch Regions 1 Pre-discovered Areas 2 | . 1 1 Known Exits Taken 1 | . 1 . Unknown Exits Taken 1 | 1 . . Scrap Searched . | . . . Spaces Dug 14 | . 14 . Terrain Destroyed 72 | . 39 33 Melee . | . . . Projectile . | . . . AOE 72 | . 39 33 Terrain Rammed . | . . . Walls Destroyed . | . . . Machines Disabled . | . . . Actions | -11 -10 -10 --------- Run | Scr Mat Min Total 542 | 54 294 194 Wait 8 | . 6 2 Move 470 | 42 246 182 Hop . | . . . Pick Up 16 | 6 9 1 Fast Attach 12 | 6 6 . Attach 2 | . 1 1 Detach . | . . . Swap 7 | . 4 3 Drop 9 | . 9 . Fire 18 | . 13 5 Melee . | . . . Ram . | . . . Kick . | . . . Crush . | . . . Escape Stasis . | . . . Rewire . | . . . Trap . | . . . Miscellaneous . | . . . Route ------- -11/Scrapyard -10/Materials -10/Mines History --------- Turn | Location | Event 11 | -11/Scrapyard | Discovered new exit (range 16) 62 | -11/Scrapyard | Entered Materials 112 | -10/Materials | Discovered new exit (range 16) 322 | -10/Materials | Build established: Mutant 336 | -10/Materials | Core integrity fell below 50% 396 | -10/Materials | Identified exit to Mines 447 | -10/Materials | Entered Mines 448 | -10/Mines | Assembled infested the area 545 | -10/Mines | Learned location of Storage (-8) 756 | -10/Mines | Core integrity fell below 20% 757 | -10/Mines | Destroyed by D-53 Grenadier with Mini Grenade Launcher Last Messages --------------- 00467_ Acquired 2 matter. 00474_ The unstable cave ceiling collapses. 00545_ A derelict emerges from the shadows: "Are any of them following you? I'm here trying to lose some heat after our second raid on Storage failed. Whatever you do stay away from that place, they've tightened security following our previous successful raids." World map updated: -8/Storage. 00549_ C8-0GF(g): "We scattered so the Unaware couldn't effectively use their advantage in numbers, and I suggest you do the same." 00549_ C8-0GF(g) slips back into the shadows. 00551_ Extracted 149 matter. 00556_ Acquired Hcp. Matter Pod. 00673_ K-01 Serf collects debris. 00739_ U-05 Engineer builds a Wall. 00744_ K-01 Serf cleans the Matter Pump. 00747_ U-05 Engineer builds a Wall. 00749_ K-01 Serf cleans the Matter Pump. 00755_ Matter Pump disabled. 00755_ K-01 Serf destroyed. 00757_ U-05 Engineer lays Concrete. Map ----- +----------------------------------------------------+ | ??????????????????????????????????????????? | | ??????????????????????????????????????????? | | ??????????????????????????????????????????? | | ??????????????????????????????????????????? | | ??????????????????????????????????????????? | | ??????????????????????????????????????????? | | ??????????????????????????????????????????? | | ??????????????????????????????????????????? | | ??????????????????????????????????????????? | | ??????????????????????????????????????????? | | ??????????????????????????????????????????? | | ??????????????????????????????????????????? | | ????????????????????#?????????????????????? | | ??????????????????????????????????????????? | | ??????????????????????????????????????????? | | ?????????????????#????????????????????????? | | ??????????????????????????????????????????? | | ???????????#?????????????????????????????? | | ????????????????????????######????????????? | | ???? ??????? ??????????? ##???????????? | | ?????? ???????????????? #???????????? | | ??? ???? ??#?????????####dd #???????????? | | ????????????????????## #???????????? | | ????????#???????????# ##???????????? | | ???????????########### #???????????? | | ??????###### @ #???????????? | | ?????## # # r u " ????? | | ?##### ##### ####### " ###????? | | ????### ## ##??#?## ##??????? | | ?##### #??????## #####???????? | | ## #???????# ##???????????? | | # ## #?#?????# #????????????? | | ## #???????## ##???????????? | | ##### ###### ##??#?????### ##????????????? | | #???## ## ##???????????? #?????????????? | | ??#??#### ??? ???? ?? #?????????????? | | ????????? ######?????????? #?????????????? | | ????????# #?#????????????? #?????????????? | | ????????# ???????????????? ?????????????? | | ???#??? #??????????????? ?????????????? | | ??#???#?##??#????????????? ??????????????? | | ??????#??????#????????????????????????????? | | ??????????????????????????????????????????? | | #?#???????????????????????????????????????? | | ??????????????????????????????????????????? | | ??????????????????????????????????????????? | | ??????????????????????????????????????????? | | ??????????????????????????????????????????? | | ??????????????????????????????????????????? | | ??????????????????????????????????????????? | +----------------------------------------------------+ Best States ------------- Heat Dissipation 25 Energy Generation 10 Energy Capacity 125 Matter Stores 300 Matter Capacity 300 Sight Range 16 Terrain Scan Range 14 Terrain Scan Density 10 Evasion (%) 55 Recoil Reduction 2 Item Schematics ----------------- Huge Storage Unit | -10/Materials | Hacked Lrg. Storage Unit | -10/Materials | Hacked Robot Schematics ------------------ None Fabricated ------------ Nothing Alien Tech Used ----------------- None Achievements -------------- None Challenges ------------ None Game ------ Seed ZionitePhaseSword Manual? 0 Play Time 00:08:57 Cumulative 172.9 hours Start 2022.03.30 @ 16:41:27 End 2022.03.30 @ 16:49:46 Sessions 1 Manual Loads 0 Difficulty Rogue Special Mode None Game No. 48 Rogue 48 Adventurer 0 Explorer 0 Win Type - Total 13 Types 7/2/2/1/1/0/0/0/0 Lore% 50 Gallery% 73 Achievement% 63 Wizard Run 0 Options --------- ASCII 0 Keyboard 0 Movement Numpad Keybinds 0 Fullscreen 1 Font 18/TerminusBold Map View 76x50 Tactical HUD 1 Map Filters NONE Filters NONE Steam 1 RUN: 63881864-221e-4d94-85cd-64c36baaabef